[Event "*** Titled Tuesday Blitz"]
[Site "Chess.com"]
[Date "2020.12.29"]
[Round "6"]
[White "Galileo22"]
[Black "NateSolon"]
[Result "0-1"]
[WhiteElo "2341"]
[BlackElo "2498"]
[TimeControl "180+1"]
[EndTime "11:06:38 PST"]
[Termination "NateSolon won by checkmate"]

1. d4 {[%clk 0:03:00.9]} 1... Nf6 {[%clk 0:03:00.1]} 2. Bg5 {[%clk 0:03:00.4]}
2... d5 {[%clk 0:02:56]} 3. Nd2 {[%clk 0:02:59.1]} 3... c5 {[%clk 0:02:54.4]} 4.
e3 {[%clk 0:02:58.2]} 4... Nc6 {[%clk 0:02:52.1]} 5. c3 {[%clk 0:02:57.6]} 5...
Qb6 {[%clk 0:02:48.2]} 6. Qb3 {[%clk 0:02:51.8]} 6... c4 {[%clk 0:02:36.9]} 7.
Qxb6 {[%clk 0:02:44]} 7... axb6 {[%clk 0:02:36.6]} 8. a3 {[%clk 0:02:41.9]} 8...
b5 {[%clk 0:02:35.6]} 9. Rd1 {[%clk 0:02:36.9]} 9... Bf5 {[%clk 0:02:33.3]} 10.
Ngf3 {[%clk 0:02:21]} 10... e6 {[%clk 0:02:29.3]} 11. Bxf6 {[%clk 0:02:12.7]}
11... gxf6 {[%clk 0:02:29.1]} 12. Nh4 {[%clk 0:02:09.5]} 12... Bg6 {[%clk
0:02:23.9]} 13. g3 {[%clk 0:01:56.1]} 13... Bd6 {[%clk 0:01:59.8]} 14. Be2
{[%clk 0:01:49.1]} 14... Kd7 {[%clk 0:01:43.6]} 15. Bf3 {[%clk 0:01:23.8]} 15...
Bd3 {[%clk 0:01:40.9]} 16. Be2 {[%clk 0:01:23.5]} 16... Bxe2 {[%clk 0:01:36.1]}
17. Kxe2 {[%clk 0:01:23.2]} 17... f5 {[%clk 0:01:36.6]} 18. f4 {[%clk
0:01:09.7]} 18... Ne7 {[%clk 0:01:23.8]} 19. Ndf3 {[%clk 0:01:05.9]} 19... f6
{[%clk 0:01:18.3]} 20. Rdg1 {[%clk 0:01:00.9]} 20... Rhg8 {[%clk 0:01:17.1]} 21.
Rg2 {[%clk 0:00:58.1]} 21... Nc8 {[%clk 0:01:07.4]} 22. Kd2 {[%clk 0:00:55.8]}
22... Nb6 {[%clk 0:01:07.4]} 23. Kc2 {[%clk 0:00:55.3]} 23... Bxa3 {[%clk
0:01:03]} 24. bxa3 {[%clk 0:00:43.7]} 24... Rxa3 {[%clk 0:01:03.9]} 25. Rc1
{[%clk 0:00:19]} 25... Na4 {[%clk 0:01:01.7]} 26. Kd2 {[%clk 0:00:18.5]} 26...
Kc6 {[%clk 0:00:54.7]} 27. Rc2 {[%clk 0:00:18.2]} 27... b4 {[%clk 0:00:49.7]}
28. cxb4 {[%clk 0:00:17.9]} 28... Rd3+ {[%clk 0:00:46.6]} 29. Ke2 {[%clk
0:00:17.8]} 29... Nc3+ {[%clk 0:00:46.3]} 30. Kf2 {[%clk 0:00:17.8]} 30... Nd1+
{[%clk 0:00:45.8]} 31. Ke2 {[%clk 0:00:17.5]} 31... Nxe3 {[%clk 0:00:46.1]} 32.
b5+ {[%clk 0:00:12.5]} 32... Kb6 {[%clk 0:00:44.2]} 33. Rd2 {[%clk 0:00:12.5]}
33... Nxg2 {[%clk 0:00:40.4]} 34. Nxg2 {[%clk 0:00:09.6]} 34... Rxd2+ {[%clk
0:00:40.1]} 35. Kxd2 {[%clk 0:00:10.1]} 35... Ra8 {[%clk 0:00:39.7]} 36. Ne3
{[%clk 0:00:09.9]} 36... Ra2+ {[%clk 0:00:39.5]} 37. Nc2 {[%clk 0:00:10.3]}
37... Kxb5 {[%clk 0:00:38.6]} 38. Kc3 {[%clk 0:00:10.7]} 38... Ka4 {[%clk
0:00:37.7]} 39. h3 {[%clk 0:00:08.9]} 39... b5 {[%clk 0:00:36.2]} 40. Nfe1
{[%clk 0:00:07.9]} 40... b4+ {[%clk 0:00:35.2]} 41. Nxb4 {[%clk 0:00:07.9]}
41... Ra3+ {[%clk 0:00:35.1]} 42. Kb2 {[%clk 0:00:08]} 42... Rb3+ {[%clk
0:00:35.5]} 43. Kc2 {[%clk 0:00:07.1]} 43... Kxb4 {[%clk 0:00:35.3]} 44. g4
{[%clk 0:00:08]} 44... Rxh3 {[%clk 0:00:34.9]} 45. gxf5 {[%clk 0:00:07.7]} 45...
exf5 {[%clk 0:00:35.8]} 46. Kd2 {[%clk 0:00:07.8]} 46... Rh2+ {[%clk 0:00:35.3]}
47. Ke3 {[%clk 0:00:07.2]} 47... c3 {[%clk 0:00:34.9]} 48. Nd3+ {[%clk
0:00:07.4]} 48... Kc4 {[%clk 0:00:32.9]} 49. Nc1 {[%clk 0:00:07.6]} 49... c2
{[%clk 0:00:32.6]} 50. Nd3 {[%clk 0:00:06.2]} 50... Kc3 {[%clk 0:00:31.8]} 51.
Nc1 {[%clk 0:00:05.9]} 51... Rh1 {[%clk 0:00:31.3]} 52. Ne2+ {[%clk 0:00:05.7]}
52... Kb2 {[%clk 0:00:30.8]} 53. Kf3 {[%clk 0:00:05.5]} 53... Rf1+ {[%clk
0:00:30.3]} 54. Kg2 {[%clk 0:00:05.3]} 54... Re1 {[%clk 0:00:30.4]} 55. Ng3
{[%clk 0:00:05.5]} 55... c1=Q {[%clk 0:00:30]} 56. Nxf5 {[%clk 0:00:05.4]} 56...
Qd2+ {[%clk 0:00:29.8]} 57. Kf3 {[%clk 0:00:06.3]} 57... Qd3+ {[%clk 0:00:29.4]}
58. Kg4 {[%clk 0:00:07.2]} 58... Rg1+ {[%clk 0:00:29.4]} 59. Kh4 {[%clk
0:00:06.8]} 59... Rh1+ {[%clk 0:00:27.3]} 60. Kg4 {[%clk 0:00:05.5]} 60... h5#
{[%clk 0:00:27.4]} 0-1

[Event "*** Titled Tuesday Blitz"]
[Site "Chess.com"]
[Date "2020.12.29"]
[Round "6"]
[White "bogcsab"]
[Black "Piacramling"]
[Result "1-0"]
[WhiteElo "2084"]
[BlackElo "2254"]
[TimeControl "180+1"]
[EndTime "11:06:39 PST"]
[Termination "bogcsab won on time"]

1. d4 {[%clk 0:03:00.9]} 1... Nf6 {[%clk 0:02:59.2]} 2. c4 {[%clk 0:03:00.2]}
2... c5 {[%clk 0:02:59.1]} 3. d5 {[%clk 0:02:59.9]} 3... b5 {[%clk 0:02:59.4]}
4. Qc2 {[%clk 0:02:59.1]} 4... bxc4 {[%clk 0:02:54.1]} 5. e4 {[%clk 0:02:58.7]}
5... d6 {[%clk 0:02:52.6]} 6. Nf3 {[%clk 0:02:58.1]} 6... g6 {[%clk 0:02:52.3]}
7. Be2 {[%clk 0:02:57.4]} 7... Bg7 {[%clk 0:02:48.2]} 8. Nfd2 {[%clk 0:02:57]}
8... Ba6 {[%clk 0:02:44.4]} 9. Nxc4 {[%clk 0:02:56.2]} 9... Bxc4 {[%clk
0:02:42.7]} 10. Bxc4 {[%clk 0:02:55.4]} 10... O-O {[%clk 0:02:42.8]} 11. O-O
{[%clk 0:02:55.3]} 11... Nbd7 {[%clk 0:02:41.1]} 12. f4 {[%clk 0:02:52.6]} 12...
Nb6 {[%clk 0:02:33.1]} 13. Be2 {[%clk 0:02:49.8]} 13... e6 {[%clk 0:02:29.7]}
14. dxe6 {[%clk 0:02:48.6]} 14... fxe6 {[%clk 0:02:28.9]} 15. Be3 {[%clk
0:02:47.8]} 15... Rc8 {[%clk 0:02:27.8]} 16. Nc3 {[%clk 0:02:45.5]} 16... Qe7
{[%clk 0:02:26.3]} 17. Rad1 {[%clk 0:02:43.6]} 17... d5 {[%clk 0:02:24.5]} 18.
e5 {[%clk 0:02:24.3]} 18... Nfd7 {[%clk 0:02:23]} 19. Nb5 {[%clk 0:02:21.2]}
19... d4 {[%clk 0:02:14.1]} 20. Bc1 {[%clk 0:02:18]} 20... Nd5 {[%clk
0:02:09.5]} 21. Nd6 {[%clk 0:02:09.2]} 21... Rb8 {[%clk 0:02:05.5]} 22. a3
{[%clk 0:01:48.8]} 22... Kh8 {[%clk 0:01:34]} 23. Rf3 {[%clk 0:01:47.2]} 23...
Rb6 {[%clk 0:01:02.6]} 24. Rdf1 {[%clk 0:01:37.2]} 24... Rxd6 {[%clk 0:01:01.4]}
25. exd6 {[%clk 0:01:36.8]} 25... Qxd6 {[%clk 0:01:01.6]} 26. Bd3 {[%clk
0:01:25.1]} 26... Ne7 {[%clk 0:00:58.9]} 27. Rh3 {[%clk 0:01:21]} 27... Kg8
{[%clk 0:00:59]} 28. g4 {[%clk 0:01:17]} 28... Nf6 {[%clk 0:00:56.3]} 29. f5
{[%clk 0:01:02.6]} 29... exf5 {[%clk 0:00:51.4]} 30. gxf5 {[%clk 0:01:02.1]}
30... Ng4 {[%clk 0:00:44.3]} 31. fxg6 {[%clk 0:00:56]} 31... Rxf1+ {[%clk
0:00:41.7]} 32. Bxf1 {[%clk 0:00:51.8]} 32... Nxg6 {[%clk 0:00:33.7]} 33. Bc4+
{[%clk 0:00:50.1]} 33... Kf8 {[%clk 0:00:30.1]} 34. Qg2 {[%clk 0:00:45.2]} 34...
Nf6 {[%clk 0:00:17.3]} 35. Rf3 {[%clk 0:00:42.6]} 35... Ke7 {[%clk 0:00:12.7]}
36. Bg5 {[%clk 0:00:42.1]} 36... Ke8 {[%clk 0:00:10.7]} 37. Qe2+ {[%clk
0:00:40.7]} 37... Qe7 {[%clk 0:00:10]} 38. Qf2 {[%clk 0:00:37.3]} 38... Ne5
{[%clk 0:00:07.1]} 39. Rxf6 {[%clk 0:00:29.7]} 39... Nxc4 {[%clk 0:00:05.5]} 40.
Rf5 {[%clk 0:00:20.4]} 40... Qe6 {[%clk 0:00:05.5]} 41. Qf3 {[%clk 0:00:14.5]}
41... Nd6 {[%clk 0:00:03.3]} 42. Qh5+ {[%clk 0:00:07.6]} 42... Qg6 {[%clk
0:00:02.2]} 43. Qxg6+ {[%clk 0:00:06.5]} 43... hxg6 {[%clk 0:00:02.4]} 44. Rxc5
{[%clk 0:00:07.1]} 44... Ne4 {[%clk 0:00:01.2]} 45. Ra5 {[%clk 0:00:04]} 1-0

[Event "*** Titled Tuesday Blitz"]
[Site "Chess.com"]
[Date "2020.12.29"]
[Round "6"]
[White "Salem-AR"]
[Black "Rozum_Ivan"]
[Result "1-0"]
[WhiteElo "2931"]
[BlackElo "2738"]
[TimeControl "180+1"]
[EndTime "11:06:40 PST"]
[Termination "Salem-AR won by resignation"]

1. e4 {[%clk 0:02:55.4]} 1... e5 {[%clk 0:02:59.1]} 2. Nf3 {[%clk 0:02:55.3]}
2... Nc6 {[%clk 0:02:59.4]} 3. Bc4 {[%clk 0:02:56.1]} 3... Be7 {[%clk
0:02:59.6]} 4. O-O {[%clk 0:02:55.3]} 4... Nf6 {[%clk 0:02:59.8]} 5. d3 {[%clk
0:02:55.5]} 5... O-O {[%clk 0:03:00]} 6. Re1 {[%clk 0:02:55.8]} 6... d6 {[%clk
0:02:59.9]} 7. a4 {[%clk 0:02:56.6]} 7... a5 {[%clk 0:02:59.3]} 8. Nbd2 {[%clk
0:02:44.3]} 8... Be6 {[%clk 0:02:58.6]} 9. Nf1 {[%clk 0:02:34.7]} 9... Re8
{[%clk 0:02:57.8]} 10. Bxe6 {[%clk 0:02:29.4]} 10... fxe6 {[%clk 0:02:58.7]} 11.
c3 {[%clk 0:02:28.5]} 11... h6 {[%clk 0:02:36.5]} 12. Ng3 {[%clk 0:02:19.8]}
12... Qd7 {[%clk 0:02:36.2]} 13. Qb3 {[%clk 0:02:17.9]} 13... Rf8 {[%clk
0:02:13.5]} 14. d4 {[%clk 0:02:12.4]} 14... exd4 {[%clk 0:02:13.5]} 15. cxd4
{[%clk 0:02:09]} 15... Nb4 {[%clk 0:02:13]} 16. Bd2 {[%clk 0:02:08.1]} 16... d5
{[%clk 0:02:11.2]} 17. e5 {[%clk 0:01:43.5]} 17... Nh7 {[%clk 0:01:50.6]} 18.
Rac1 {[%clk 0:01:42.5]} 18... b6 {[%clk 0:01:49.3]} 19. Bxb4 {[%clk 0:00:49.6]}
19... axb4 {[%clk 0:01:49.1]} 20. Qc2 {[%clk 0:00:49.7]} 20... c5 {[%clk
0:01:43.5]} 21. Qg6 {[%clk 0:00:30.7]} 21... Rf7 {[%clk 0:01:35.5]} 22. b3
{[%clk 0:00:20.1]} 22... Nf8 {[%clk 0:01:00.1]} 23. Qg4 {[%clk 0:00:17.6]} 23...
Rc8 {[%clk 0:00:48.1]} 24. dxc5 {[%clk 0:00:17.8]} 24... bxc5 {[%clk 0:00:49]}
25. Nh5 {[%clk 0:00:17.1]} 25... Kh8 {[%clk 0:00:44.4]} 26. Red1 {[%clk
0:00:17.1]} 26... Bd8 {[%clk 0:00:25.2]} 27. h4 {[%clk 0:00:16.1]} 27... Qe7
{[%clk 0:00:24.2]} 28. Nf4 {[%clk 0:00:15.8]} 28... Rb8 {[%clk 0:00:12.1]} 29.
Nd3 {[%clk 0:00:15.6]} 29... Bb6 {[%clk 0:00:11.4]} 30. Rc2 {[%clk 0:00:12.8]}
30... Rc8 {[%clk 0:00:10.9]} 31. Nf4 {[%clk 0:00:13]} 31... Rd8 {[%clk
0:00:09.9]} 32. h5 {[%clk 0:00:12.7]} 32... Qe8 {[%clk 0:00:09.5]} 33. Nh4
{[%clk 0:00:12.9]} 33... Rfd7 {[%clk 0:00:08.3]} 34. g3 {[%clk 0:00:10.8]} 34...
Kg8 {[%clk 0:00:08.4]} 35. Kg2 {[%clk 0:00:10.9]} 35... Qf7 {[%clk 0:00:08.9]}
36. Nhg6 {[%clk 0:00:10.8]} 36... Nxg6 {[%clk 0:00:08.9]} 37. hxg6 {[%clk
0:00:11.2]} 37... Qf5 {[%clk 0:00:09.4]} 38. Qxf5 {[%clk 0:00:11.8]} 38... exf5
{[%clk 0:00:10.3]} 39. e6 {[%clk 0:00:12.5]} 39... Re7 {[%clk 0:00:10.8]} 40.
Rxd5 {[%clk 0:00:09.4]} 40... Rxd5 {[%clk 0:00:10.3]} 41. Nxd5 {[%clk
0:00:10.3]} 41... Rxe6 {[%clk 0:00:11.1]} 42. Nxb6 {[%clk 0:00:08.3]} 42... Rxb6
{[%clk 0:00:12]} 43. Rxc5 {[%clk 0:00:09]} 43... Rxg6 {[%clk 0:00:12.3]} 44.
Rxf5 {[%clk 0:00:09.5]} 44... Rd6 {[%clk 0:00:11.9]} 45. Rb5 {[%clk 0:00:09.9]}
45... Rd4 {[%clk 0:00:12.2]} 46. a5 {[%clk 0:00:10]} 46... Kh7 {[%clk
0:00:12.8]} 47. a6 {[%clk 0:00:10.2]} 47... Rd6 {[%clk 0:00:12.7]} 48. Ra5
{[%clk 0:00:09.6]} 48... Rd8 {[%clk 0:00:13.5]} 49. a7 {[%clk 0:00:09.2]} 49...
Ra8 {[%clk 0:00:14.4]} 50. Kf3 {[%clk 0:00:09.8]} 50... Kg6 {[%clk 0:00:15.1]}
51. Ke4 {[%clk 0:00:10.5]} 51... Kf6 {[%clk 0:00:16]} 52. Kd5 {[%clk 0:00:10.8]}
52... Ke7 {[%clk 0:00:16.3]} 53. Kc6 {[%clk 0:00:11.2]} 1-0

[Event "*** Titled Tuesday Blitz"]
[Site "Chess.com"]
[Date "2020.12.29"]
[Round "6"]
[White "Martins-BR"]
[Black "Klavdia_Nik"]
[Result "1-0"]
[WhiteElo "2275"]
[BlackElo "2064"]
[TimeControl "180+1"]
[EndTime "11:06:40 PST"]
[Termination "Martins-BR won by checkmate"]

1. e4 {[%clk 0:03:00.9]} 1... g6 {[%clk 0:02:56.6]} 2. d4 {[%clk 0:03:00.1]}
2... Bg7 {[%clk 0:02:56.6]} 3. Nf3 {[%clk 0:02:59.8]} 3... d6 {[%clk 0:02:55.7]}
4. Bc4 {[%clk 0:02:59.8]} 4... c6 {[%clk 0:02:55.2]} 5. Bb3 {[%clk 0:02:56.9]}
5... Nf6 {[%clk 0:02:52.6]} 6. Qe2 {[%clk 0:02:55]} 6... O-O {[%clk 0:02:47.9]}
7. O-O {[%clk 0:02:52.2]} 7... a5 {[%clk 0:02:42.9]} 8. a4 {[%clk 0:02:50.2]}
8... Qc7 {[%clk 0:02:31.3]} 9. e5 {[%clk 0:02:47.3]} 9... Nd5 {[%clk 0:02:28.4]}
10. Re1 {[%clk 0:02:39.4]} 10... Bg4 {[%clk 0:02:18.5]} 11. exd6 {[%clk
0:02:36.3]} 11... Qxd6 {[%clk 0:02:10]} 12. c3 {[%clk 0:02:31.9]} 12... e6
{[%clk 0:02:03.9]} 13. h3 {[%clk 0:02:30.4]} 13... Bxf3 {[%clk 0:02:01]} 14.
Qxf3 {[%clk 0:02:31.3]} 14... Nd7 {[%clk 0:02:00.8]} 15. Nd2 {[%clk 0:02:30]}
15... N7f6 {[%clk 0:01:39.5]} 16. Nc4 {[%clk 0:02:28.7]} 16... Qc7 {[%clk
0:01:38.6]} 17. Ne5 {[%clk 0:02:19.8]} 17... Nd7 {[%clk 0:01:22.6]} 18. Ng4
{[%clk 0:02:07.8]} 18... h5 {[%clk 0:01:19]} 19. Ne3 {[%clk 0:02:01.1]} 19...
Nxe3 {[%clk 0:01:07.2]} 20. fxe3 {[%clk 0:01:48.8]} 20... e5 {[%clk 0:01:05.2]}
21. Qg3 {[%clk 0:01:44.3]} 21... Rae8 {[%clk 0:00:53.8]} 22. Rf1 {[%clk
0:01:23.7]} 22... Qb6 {[%clk 0:00:42]} 23. Bc2 {[%clk 0:01:12.7]} 23... c5
{[%clk 0:00:33.8]} 24. d5 {[%clk 0:01:03]} 24... e4 {[%clk 0:00:31.2]} 25. Rb1
{[%clk 0:00:45.1]} 25... c4 {[%clk 0:00:22.3]} 26. Rd1 {[%clk 0:00:31.8]} 26...
Nc5 {[%clk 0:00:15.3]} 27. Qf2 {[%clk 0:00:21.6]} 27... Nd3 {[%clk 0:00:15]} 28.
Bxd3 {[%clk 0:00:21.1]} 28... cxd3 {[%clk 0:00:14.1]} 29. Bd2 {[%clk 0:00:19.2]}
29... Qc5 {[%clk 0:00:12.9]} 30. b3 {[%clk 0:00:17.1]} 30... Qxd5 {[%clk
0:00:12.8]} 31. c4 {[%clk 0:00:17.8]} 31... Qd8 {[%clk 0:00:11.2]} 32. Qe1
{[%clk 0:00:16.4]} 32... b6 {[%clk 0:00:11.3]} 33. Bc3 {[%clk 0:00:15.9]} 33...
Bh6 {[%clk 0:00:05.1]} 34. Bd4 {[%clk 0:00:14.6]} 34... Qc7 {[%clk 0:00:04.4]}
35. Rbc1 {[%clk 0:00:13.1]} 35... Re6 {[%clk 0:00:04.4]} 36. c5 {[%clk
0:00:12.6]} 36... bxc5 {[%clk 0:00:04.3]} 37. Rxc5 {[%clk 0:00:12.7]} 37... Qb7
{[%clk 0:00:04]} 38. Rb5 {[%clk 0:00:10.8]} 38... Qd7 {[%clk 0:00:02.9]} 39.
Qxa5 {[%clk 0:00:09.9]} 39... Rc8 {[%clk 0:00:02.6]} 40. Rd5 {[%clk 0:00:04]}
40... Qb7 {[%clk 0:00:01.3]} 41. Rd8+ {[%clk 0:00:03.5]} 41... Rxd8 {[%clk
0:00:01.3]} 42. Qxd8+ {[%clk 0:00:02.6]} 42... Kh7 {[%clk 0:00:02]} 43. Qh8#
{[%clk 0:00:02.3]} 1-0

[Event "*** Titled Tuesday Blitz"]
[Site "Chess.com"]
[Date "2020.12.29"]
[Round "6"]
[White "horripile"]
[Black "StellarChessPro"]
[Result "1-0"]
[WhiteElo "2682"]
[BlackElo "2491"]
[TimeControl "180+1"]
[EndTime "11:06:41 PST"]
[Termination "horripile won by checkmate"]

1. c4 {[%clk 0:03:00.9]} 1... b6 {[%clk 0:02:59.5]} 2. g3 {[%clk 0:03:00.6]}
2... Bb7 {[%clk 0:02:59.8]} 3. Nf3 {[%clk 0:03:01.5]} 3... e6 {[%clk 0:03:00.2]}
4. Bg2 {[%clk 0:03:01.3]} 4... Nf6 {[%clk 0:03:01.1]} 5. O-O {[%clk 0:03:01.4]}
5... Be7 {[%clk 0:03:00.7]} 6. Nc3 {[%clk 0:03:01.9]} 6... O-O {[%clk
0:03:01.2]} 7. d4 {[%clk 0:03:00.4]} 7... d6 {[%clk 0:03:01.4]} 8. Re1 {[%clk
0:02:59.9]} 8... Ne4 {[%clk 0:03:00.9]} 9. Qc2 {[%clk 0:02:55.6]} 9... Nxc3
{[%clk 0:03:00.7]} 10. bxc3 {[%clk 0:02:55.3]} 10... f5 {[%clk 0:02:57.3]} 11.
e4 {[%clk 0:02:48.1]} 11... Bxe4 {[%clk 0:02:43.1]} 12. Rxe4 {[%clk 0:02:48]}
12... fxe4 {[%clk 0:02:43.3]} 13. Qxe4 {[%clk 0:02:48.9]} 13... Nd7 {[%clk
0:02:43.6]} 14. Qxe6+ {[%clk 0:02:47.2]} 14... Kh8 {[%clk 0:02:43.4]} 15. h4
{[%clk 0:02:39.7]} 15... Rb8 {[%clk 0:02:33.8]} 16. Bf4 {[%clk 0:02:31.4]} 16...
Bf6 {[%clk 0:02:14.4]} 17. Bh3 {[%clk 0:02:28.8]} 17... Nc5 {[%clk 0:01:52.3]}
18. dxc5 {[%clk 0:02:28.3]} 18... bxc5 {[%clk 0:01:53.2]} 19. Ng5 {[%clk
0:02:26]} 19... Bxc3 {[%clk 0:01:35]} 20. Rd1 {[%clk 0:02:22.6]} 20... Qf6
{[%clk 0:01:18.5]} 21. Qxf6 {[%clk 0:02:12]} 21... Bxf6 {[%clk 0:01:15.3]} 22.
Ne6 {[%clk 0:02:11.2]} 22... Rf7 {[%clk 0:01:07.9]} 23. Kg2 {[%clk 0:01:50]}
23... h6 {[%clk 0:01:04.7]} 24. h5 {[%clk 0:01:45]} 24... Rb2 {[%clk 0:01:04.4]}
25. a3 {[%clk 0:01:36.2]} 25... Rb3 {[%clk 0:00:56.1]} 26. Be3 {[%clk
0:01:33.8]} 26... Re7 {[%clk 0:00:48.4]} 27. Bf5 {[%clk 0:01:28.8]} 27... a5
{[%clk 0:00:46.7]} 28. Nf4 {[%clk 0:01:28.3]} 28... Re8 {[%clk 0:00:29.8]} 29.
Ng6+ {[%clk 0:01:23]} 29... Kg8 {[%clk 0:00:30]} 30. Bd7 {[%clk 0:01:15.5]}
30... Reb8 {[%clk 0:00:27.5]} 31. a4 {[%clk 0:01:13.3]} 31... Rb1 {[%clk
0:00:27.1]} 32. Be6+ {[%clk 0:01:11.2]} 32... Kh7 {[%clk 0:00:26.9]} 33. Nf8+
{[%clk 0:01:07]} 33... Kh8 {[%clk 0:00:26.5]} 34. Ng6+ {[%clk 0:01:06.9]} 34...
Kh7 {[%clk 0:00:26.9]} 35. Rd5 {[%clk 0:00:58.6]} 35... R1b4 {[%clk 0:00:24.3]}
36. Bd7 {[%clk 0:00:49.4]} 36... Rxc4 {[%clk 0:00:22.6]} 37. Nf4 {[%clk
0:00:46.3]} 37... Rcb4 {[%clk 0:00:18.8]} 38. Ne6 {[%clk 0:00:43.4]} 38... c4
{[%clk 0:00:17.5]} 39. Nxc7 {[%clk 0:00:42.6]} 39... c3 {[%clk 0:00:17.5]} 40.
Bf5+ {[%clk 0:00:40.3]} 40... Kh8 {[%clk 0:00:16.6]} 41. Na6 {[%clk 0:00:34.6]}
41... Re8 {[%clk 0:00:07.3]} 42. Nxb4 {[%clk 0:00:34]} 42... axb4 {[%clk
0:00:08.2]} 43. Rb5 {[%clk 0:00:31.4]} 43... d5 {[%clk 0:00:07.1]} 44. Rxb4
{[%clk 0:00:29.5]} 44... Rd8 {[%clk 0:00:02.8]} 45. Bd4 {[%clk 0:00:29.3]} 45...
Bxd4 {[%clk 0:00:03.1]} 46. Rxd4 {[%clk 0:00:30.2]} 46... c2 {[%clk 0:00:03.7]}
47. Bxc2 {[%clk 0:00:29.7]} 47... Kg8 {[%clk 0:00:04.6]} 48. Rxd5 {[%clk
0:00:29.5]} 48... g6 {[%clk 0:00:05.5]} 49. Rxd8+ {[%clk 0:00:28.9]} 49... Kg7
{[%clk 0:00:06.3]} 50. Rd7+ {[%clk 0:00:29]} 50... Kf6 {[%clk 0:00:06.7]} 51.
hxg6 {[%clk 0:00:28.2]} 51... h5 {[%clk 0:00:07.2]} 52. g7 {[%clk 0:00:28]}
52... h4 {[%clk 0:00:08.1]} 53. g8=Q {[%clk 0:00:27.2]} 53... h3+ {[%clk
0:00:09]} 54. Kf3 {[%clk 0:00:27.4]} 54... h2 {[%clk 0:00:09]} 55. Kf4 {[%clk
0:00:27.6]} 55... h1=Q {[%clk 0:00:08.9]} 56. Qg7+ {[%clk 0:00:27.7]} 56... Ke6
{[%clk 0:00:09.3]} 57. Qe7# {[%clk 0:00:27.6]} 1-0

[Event "*** Titled Tuesday Blitz"]
[Site "Chess.com"]
[Date "2020.12.29"]
[Round "6"]
[White "Deepweb2020"]
[Black "KaterinaMiroshnik"]
[Result "0-1"]
[WhiteElo "2361"]
[BlackElo "2537"]
[TimeControl "180+1"]
[EndTime "11:06:41 PST"]
[Termination "KaterinaMiroshnik won by resignation"]

1. d4 {[%clk 0:02:58.2]} 1... d6 {[%clk 0:02:57.4]} 2. e4 {[%clk 0:02:57.2]}
2... g6 {[%clk 0:02:58.3]} 3. Nc3 {[%clk 0:02:57.3]} 3... Bg7 {[%clk 0:02:59.2]}
4. Bf4 {[%clk 0:02:57.6]} 4... Nd7 {[%clk 0:02:53.3]} 5. Qd2 {[%clk 0:02:51.8]}
5... h5 {[%clk 0:02:50]} 6. f3 {[%clk 0:02:50.9]} 6... Bh6 {[%clk 0:02:49.4]} 7.
O-O-O {[%clk 0:02:47.1]} 7... Bxf4 {[%clk 0:02:46.4]} 8. Qxf4 {[%clk 0:02:48]}
8... e5 {[%clk 0:02:40.9]} 9. dxe5 {[%clk 0:02:35.8]} 9... dxe5 {[%clk
0:02:39.3]} 10. Qe3 {[%clk 0:02:24.2]} 10... Ngf6 {[%clk 0:02:32.4]} 11. Bc4
{[%clk 0:02:17.8]} 11... O-O {[%clk 0:02:28.9]} 12. Qh6 {[%clk 0:02:11.9]} 12...
Qe7 {[%clk 0:01:46.5]} 13. Qxg6+ {[%clk 0:02:08.3]} 13... Kh8 {[%clk 0:01:43.7]}
14. Qh6+ {[%clk 0:02:05.9]} 14... Nh7 {[%clk 0:01:43]} 15. Nh3 {[%clk 0:01:34]}
15... Nb6 {[%clk 0:01:33.8]} 16. Bb3 {[%clk 0:01:27.8]} 16... Bxh3 {[%clk
0:01:28.9]} 17. gxh3 {[%clk 0:01:25.8]} 17... Qg5+ {[%clk 0:01:29.4]} 18. Qxg5
{[%clk 0:01:23.5]} 18... Nxg5 {[%clk 0:01:30.3]} 19. Rhg1 {[%clk 0:01:00.8]}
19... Nxh3 {[%clk 0:01:24.7]} 20. Rg3 {[%clk 0:00:49.9]} 20... Nf4 {[%clk
0:01:23.5]} 21. Rdg1 {[%clk 0:00:42.7]} 21... c5 {[%clk 0:01:20.1]} 22. Bd5
{[%clk 0:00:21.6]} 22... Nbxd5 {[%clk 0:01:15.4]} 23. exd5 {[%clk 0:00:21.9]}
23... Rad8 {[%clk 0:01:15.3]} 24. Rg5 {[%clk 0:00:21.6]} 24... f6 {[%clk
0:01:11.3]} 25. Rg7 {[%clk 0:00:15.7]} 25... Rg8 {[%clk 0:01:07.6]} 26. Rxg8+
{[%clk 0:00:10.9]} 26... Rxg8 {[%clk 0:01:08.5]} 27. Rxg8+ {[%clk 0:00:10.6]}
27... Kxg8 {[%clk 0:01:07.8]} 28. Ne4 {[%clk 0:00:10.9]} 28... Nxd5 {[%clk
0:01:04.5]} 29. Nxc5 {[%clk 0:00:10.9]} 29... b6 {[%clk 0:01:00.9]} 30. Ne4
{[%clk 0:00:10.6]} 30... Kf7 {[%clk 0:01:00.1]} 31. Kd2 {[%clk 0:00:09.4]} 31...
f5 {[%clk 0:00:57.1]} 32. Nd6+ {[%clk 0:00:09.4]} 32... Ke6 {[%clk 0:00:56]} 33.
Nc8 {[%clk 0:00:09.8]} 33... a6 {[%clk 0:00:51.2]} 34. c4 {[%clk 0:00:09.8]}
34... Kd7 {[%clk 0:00:47.1]} 35. cxd5 {[%clk 0:00:07]} 35... Kxc8 {[%clk
0:00:47.2]} 36. Kd3 {[%clk 0:00:03.6]} 36... Kc7 {[%clk 0:00:44.2]} 37. b4
{[%clk 0:00:02.5]} 37... Kd6 {[%clk 0:00:44.1]} 38. f4 {[%clk 0:00:01.8]} 38...
b5 {[%clk 0:00:41]} 39. fxe5+ {[%clk 0:00:00.9]} 39... Kxe5 {[%clk 0:00:39.5]}
40. Ke3 {[%clk 0:00:01.5]} 40... Kxd5 {[%clk 0:00:33.5]} 41. Kf4 {[%clk
0:00:02.4]} 41... Kc4 {[%clk 0:00:30.5]} 42. Kxf5 {[%clk 0:00:02.5]} 42... Kxb4
{[%clk 0:00:30]} 43. Kg5 {[%clk 0:00:03.1]} 43... Ka3 {[%clk 0:00:26.2]} 44.
Kxh5 {[%clk 0:00:03.6]} 44... Kxa2 {[%clk 0:00:22.1]} 45. Kg4 {[%clk 0:00:03.6]}
45... b4 {[%clk 0:00:19.4]} 46. h4 {[%clk 0:00:03.7]} 46... b3 {[%clk
0:00:20.3]} 47. h5 {[%clk 0:00:04.6]} 47... b2 {[%clk 0:00:21.2]} 48. h6 {[%clk
0:00:05.5]} 48... b1=Q {[%clk 0:00:21.4]} 49. h7 {[%clk 0:00:06.4]} 49... Qh1
{[%clk 0:00:21]} 50. h8=Q {[%clk 0:00:07.3]} 50... Qxh8 {[%clk 0:00:19.8]} 0-1